[Event "AUT Bundesliga 2019-20"]
[Site "Linz"]
[Date "2019.10.10"]
[Round "1.10"]
[White "Antoniewski, Rafal"]
[Black "Acs, Peter"]
[Result "1/2-1/2"]
[ECO "C77"]
[WhiteElo "2481"]
[BlackElo "2586"]
[Annotator "ChessBase"]
[PlyCount "62"]
[EventDate "2019.10.10"]
[EventType "team-tourn"]
[EventCountry "AUT"]
[SourceTitle "playchess.com"]
[Source "ChessBase"]
[SourceQuality "1"]
[TimeControl "40/5400+30:1800+30"]

1. e4 {[%emt 0:00:29]} e5 {[%emt 0:00:00]} 2. Nf3 {[%emt 0:00:25]} Nc6 {[%emt 0:00:06]} 3. Bb5 {[%emt 0:00:31]} a6 {[%emt 0:01:00]} 4. Ba4 {[%emt 0:00:07]} Nf6 {[%emt 0:00:11]} 5. d3 {[%emt 0:01:18]} d6 {[%emt 0:06:37]} 6. c3 {[%emt 0:00:57]} g6 {[%emt 0:06:16]} 7. Bg5 {[%emt 0:02:36]} Bg7 {[%emt 0:01:59]} 8. Nbd2 {[%emt 0:00:28]} O-O {[%emt 0:02:17]} 9. Nf1 {[%emt 0:06:51]} Ne7 {[%emt 0:06:14]} 10. Ne3 {[%emt 0:01:40]} c6 {[%emt 0:01:32]} 11. O-O {[%emt 0:01:33]} Qc7 {[%emt 0:10:05]} 12. Bb3 {[%emt 0:09:57]} Kh8 {[%emt 0:08:53]} 13. Bh4 {[%emt 0:06:29]} h6 {[%emt 0:01:31]} 14. Re1 {[%emt 0:09:17]} b5 {[%emt 0:07:48]} 15. a4 {[%emt 0:15:26]} Rb8 {[%emt 0:00:24]} 16. axb5 {[%emt 0:00:10]} axb5 {[%emt 0:00:40]} 17. Qd2 {[%emt 0:13:11]} Kh7 {[%emt 0:19:05]} 18. Red1 {[%emt 0:12:19]} Be6 {[%emt 0:04:31]} 19. Bxe6 {[%emt 0:02:20]} fxe6 {[%emt 0:00:06]} 20. Bxf6 {[%emt 0:01:20]} Rxf6 {[%emt 0:01:37]} 21. d4 {[%emt 0:01:16]} exd4 {[%emt 0:02:36]} 22. Nxd4 {[%emt 0:00:09]} Qd7 {[%emt 0:08:08]} 23. Nb3 {[%emt 0:06:17]} e5 {[%emt 0:01:32]} 24. Nc5 {[%emt 0:00:09]} Qe8 {[%emt 0:01:06]} 25. Nd3 {[%emt 0:00:44]} Re6 {[%emt 0:01:29]} 26. Ra7 {[%emt 0:01:32]} Ra8 {[%emt 0:00:45]} 27. Rxa8 {[%emt 0:00:42]} Qxa8 {[%emt 0:00:06]} 28. Nb4 {[%emt 0:00:59]} h5 {[%emt 0:01:11]} 29. Qc2 {[%emt 0:00:21]} Bh6 {[%emt 0:00:50]} 30. Qe2 {[%emt 0:01:40]} Rf6 {[%emt 0:00:33]} 31. Nec2 {[%emt 0:00:35]} c5 {[%emt 0:02:17]} 1/2-1/2

[Event "AUT Bundesliga 2019-20"]
[Site "Linz"]
[Date "2019.10.10"]
[Round "1.11"]
[White "Diermair, Andreas"]
[Black "Gstach, Jakob"]
[Result "1-0"]
[ECO "E81"]
[WhiteElo "2479"]
[BlackElo "2301"]
[Annotator "ChessBase"]
[PlyCount "71"]
[EventDate "2019.10.10"]
[EventType "team-tourn"]
[EventCountry "AUT"]
[SourceTitle "playchess.com"]
[Source "ChessBase"]
[SourceQuality "1"]
[TimeControl "40/5400+30:1800+30"]

1. d4 {[%emt 0:00:00]} Nf6 {[%emt 0:00:00]} 2. c4 {[%emt 0:00:16]} g6 {[%emt 0:00:00]} 3. Nc3 {[%emt 0:01:24]} Bg7 {[%emt 0:00:00]} 4. e4 {[%emt 0:00:13]} d6 {[%emt 0:00:01]} 5. f3 {[%emt 0:01:53]} O-O {[%emt 0:00:19]} 6. Be3 {[%emt 0:00:08]} c5 {[%emt 0:01:19]} 7. Nge2 {[%emt 0:02:53]} Nc6 {[%emt 0:05:20]} 8. d5 {[%emt 0:03:22]} Ne5 {[%emt 0:00:08]} 9. Ng3 {[%emt 0:00:15]} h5 {[%emt 0:01:09]} 10. Be2 {[%emt 0:02:40]} h4 {[%emt 0:00:27]} 11. Nf1 {[%emt 0:00:09]} e6 {[%emt 0:00:05]} 12. Bg5 {[%emt 0:03:50]} h3 {[%emt 0:10:37]} 13. Ne3 {[%emt 0:18:11]} hxg2 {[%emt 0:08:30]} 14. Rg1 {[%emt 0:00:14]} exd5 {[%emt 0:09:56]} 15. Nexd5 {[%emt 0:03:09]} Be6 {[%emt 0:19:20]} 16. Qd2 {[%emt 0:04:37]} Nc6 {[%emt 0:06:41]} 17. Rxg2 {[%emt 0:06:47]} Nd4 {[%emt 0:13:32]} 18. O-O-O {[%emt 0:04:09]} a6 {[%emt 0:05:19]} 19. Qe1 {[%emt 0:07:13]} Bxd5 {[%emt 0:01:50]} 20. Nxd5 {[%emt 0:01:59]} Ne6 {[%emt 0:00:39]} 21. Bh4 {[%emt 0:01:09]} Nxd5 {[%emt 0:04:11]} 22. Bxd8 {[%emt 0:04:39]} Ndf4 {[%emt 0:00:06]} 23. Bg5 {[%emt 0:08:13]} Nxg5 {[%emt 0:03:03]} 24. Rxg5 {[%emt 0:02:53]} Bh6 {[%emt 0:00:04]} 25. h4 {[%emt 0:00:58]} f6 {[%emt 0:00:17]} 26. Rxg6+ {[%emt 0:02:21]} Nxg6+ {[%emt 0:00:05]} 27. Kb1 {[%emt 0:01:20]} Rad8 {[%emt 0:02:43]} 28. Bf1 {[%emt 0:03:10]} b6 {[%emt 0:03:48]} 29. Bh3 {[%emt 0:02:40]} Nf4 {[%emt 0:01:09]} 30. Bg4 {[%emt 0:02:06]} Kf7 {[%emt 0:02:23]} 31. Qe3 {[%emt 0:01:22]} Rg8 {[%emt 0:01:23]} 32. Qb3 {[%emt 0:01:49]} Rb8 {[%emt 0:00:34]} 33. Rxd6 {[%emt 0:02:02]} Rgd8 {[%emt 0:00:05]} 34. Qd1 {[%emt 0:00:58]} Rxd6 {[%emt 0:01:17]} 35. Qxd6 {[%emt 0:00:03]} Rb7 {[%emt 0:00:19]} 36. e5 {[%emt 0:00:53]} 1-0

[Event "AUT Bundesliga 2019-20"]
[Site "Linz"]
[Date "2019.10.10"]
[Round "1.12"]
[White "Schneider-Zinner, Harald"]
[Black "Sebenik, Matej"]
[Result "1/2-1/2"]
[ECO "A46"]
[WhiteElo "2392"]
[BlackElo "2519"]
[Annotator "ChessBase"]
[PlyCount "105"]
[EventDate "2019.10.10"]
[EventType "team-tourn"]
[EventCountry "AUT"]
[SourceTitle "playchess.com"]
[Source "ChessBase"]
[SourceQuality "1"]
[TimeControl "40/5400+30:1800+30"]

1. d4 {[%emt 0:00:00]} Nf6 {[%emt 0:00:12]} 2. Nf3 {[%emt 0:00:07]} d5 {[%emt 0:02:20]} 3. c4 {[%emt 0:00:22]} e6 {[%emt 0:00:05]} 4. g3 {[%emt 0:00:59]} Bb4+ {[%emt 0:00:51]} 5. Bd2 {[%emt 0:00:38]} Be7 {[%emt 0:00:07]} 6. Qc2 {[%emt 0:01:27]} O-O {[%emt 0:00:13]} 7. Bg2 {[%emt 0:00:10]} c6 {[%emt 0:00:17]} 8. O-O {[%emt 0:00:29]} Nbd7 {[%emt 0:00:07]} 9. Rd1 {[%emt 0:01:35]} b6 {[%emt 0:00:15]} 10. cxd5 {[%emt 0:01:26]} cxd5 {[%emt 0:00:11]} 11. Nc3 {[%emt 0:01:05]} Bb7 {[%emt 0:01:10]} 12. Rac1 {[%emt 0:02:04]} a6 {[%emt 0:04:47]} 13. Bg5 {[%emt 0:04:21]} Rc8 {[%emt 0:05:40]} 14. Qb1 {[%emt 0:09:06]} b5 {[%emt 0:06:45]} 15. e3 {[%emt 0:05:13]} h6 {[%emt 0:20:09]} 16. Bxf6 {[%emt 0:00:23]} Bxf6 {[%emt 0:00:05]} 17. Ne2 {[%emt 0:04:19]} Qb6 {[%emt 0:04:10]} 18. Nf4 {[%emt 0:02:48]} b4 {[%emt 0:03:04]} 19. Rxc8 {[%emt 0:13:31]} Rxc8 {[%emt 0:00:09]} 20. Rc1 {[%emt 0:00:09]} Rc6 {[%emt 0:04:42]} 21. h4 {[%emt 0:07:23]} a5 {[%emt 0:03:24]} 22. Bf1 {[%emt 0:06:50]} a4 {[%emt 0:09:18]} 23. Rxc6 {[%emt 0:07:45]} Qxc6 {[%emt 0:04:14]} 24. Nd3 {[%emt 0:04:38]} Be7 {[%emt 0:00:19]} 25. Nfe5 {[%emt 0:01:00]} Nxe5 {[%emt 0:00:05]} 26. Nxe5 {[%emt 0:00:07]} Qc7 {[%emt 0:00:42]} 27. Bb5 {[%emt 0:04:46]} Bd6 {[%emt 0:02:45]} 28. Bxa4 {[%emt 0:08:26]} Bxe5 {[%emt 0:00:52]} 29. dxe5 {[%emt 0:00:08]} Qxe5 {[%emt 0:00:18]} 30. Bc2 {[%emt 0:09:35]} f5 {[%emt 0:06:33]} 31. Bb3 {[%emt 0:01:14]} Kh7 {[%emt 0:08:25]} 32. h5 {[%emt 0:01:13]} Bc6 {[%emt 0:03:42]} 33. a3 {[%emt 0:01:26]} bxa3 {[%emt 0:04:51]} 34. bxa3 {[%emt 0:00:00]} Qc3 {[%emt 0:00:10]} 35. a4 {[%emt 0:01:28]} Qb4 {[%emt 0:00:50]} 36. Qd3 {[%emt 0:00:54]} Bxa4 {[%emt 0:02:55]} 37. Bxd5 {[%emt 0:00:36]} Bb5 {[%emt 0:00:45]} 38. Qc2 {[%emt 0:00:11]} exd5 {[%emt 0:02:17]} 39. Qxf5+ {[%emt 0:00:01]} Kg8 {[%emt 0:00:10]} 40. Qxd5+ {[%emt 0:00:00]} Kh8 {[%emt 0:00:00]} 41. Qf5 {[%emt 0:06:29]} Qc4 {[%emt 0:02:06]} 42. e4 {[%emt 0:03:43]} Be8 {[%emt 0:10:00]} 43. g4 {[%emt 0:02:34]} Qf7 {[%emt 0:00:07]} 44. Qe5 {[%emt 0:04:38]} Bc6 {[%emt 0:00:18]} 45. Kg2 {[%emt 0:06:30]} Qe8 {[%emt 0:00:25]} 46. Qxe8+ {[%emt 0:00:11]} Bxe8 {[%emt 0:00:04]} 47. e5 {[%emt 0:00:25]} Kg8 {[%emt 0:18:16]} 48. f4 {[%emt 0:00:39]} Kf7 {[%emt 0:00:04]} 49. f5 {[%emt 0:00:12]} Ba4 {[%emt 0:00:06]} 50. Kg3 {[%emt 0:00:33]} Bd1 {[%emt 0:00:07]} 51. Kh4 {[%emt 0:00:34]} Bc2 {[%emt 0:00:18]} 52. Kg3 {[%emt 0:00:11]} Bd1 {[%emt 0:00:11]} 53. Kh4 1/2-1/2

[Event "AUT Bundesliga 2019-20"]
[Site "Linz"]
[Date "2019.10.10"]
[Round "1.12"]
[White "Ennsberger, Ulrich"]
[Black "Novkovic, Milan"]
[Result "0-1"]
[ECO "D44"]
[WhiteElo "2259"]
[BlackElo "2357"]
[Annotator "NA"]
[PlyCount "79"]
[EventDate "2019.10.10"]
[EventType "team-tourn"]
[EventCountry "AUT"]
[SourceTitle "playchess.com"]
[Source "ChessBase"]
[SourceQuality "1"]
[TimeControl "40/5400+30:1800+30"]

1. Nf3 {[%emt 0:00:00]} Nf6 {[%emt 0:00:25]} 2. c4 {[%emt 0:00:14]} e6 {[%emt 0:02:03]} 3. Nc3 {[%emt 0:04:57]} d5 {[%emt 0:00:30]} 4. d4 {[%emt 0:01:07]} c6 {[%emt 0:00:32]} 5. Bg5 {[%emt 0:05:00]} dxc4 {[%emt 0:07:02]} 6. e4 {[%emt 0:01:54]} b5 {[%emt 0:00:11]} 7. e5 {[%emt 0:01:11]} h6 {[%emt 0:00:12]} 8. Bh4 {[%emt 0:01:10]} g5 {[%emt 0:00:17]} 9. Nxg5 {[%emt 0:00:43]} hxg5 {[%emt 0:00:30]} 10. Bxg5 {[%emt 0:00:08]} Be7 {[%emt 0:00:13]} 11. exf6 {[%emt 0:00:56]} Bxf6 {[%emt 0:00:07]} 12. Bxf6 {[%emt 0:02:47]} Qxf6 {[%emt 0:00:08]} 13. g3 {[%emt 0:01:09]} Bb7 {[%emt 0:01:51]} 14. Bg2 {[%emt 0:00:19]} Na6 {[%emt 0:00:21]} 15. Nxb5 {[%emt 0:54:21]} cxb5 {[%emt 0:00:09]} 16. Bxb7 {[%emt 0:00:13]} Nb4 {[%emt 0:00:05]} 17. O-O {[%emt 0:00:12]} Rd8 {[%emt 0:06:36]} 18. Qd2 {[%emt 0:00:32]} Nd3 {[%emt 0:16:01]} 19. Bc6+ {[%emt 0:00:45]} Kf8 {[%emt 0:05:18]} 20. Rad1 {[%emt 0:11:58]} Rxd4 {[%emt 0:05:37]} 21. Qe3 {[%emt 0:01:31]} Rh5 {[%emt 0:23:35]} 22. a4 {[%emt 0:02:00]} bxa4 {[%emt 0:04:45]} 23. Rd2 {[%emt 0:01:39]} Ra5 {[%emt 0:12:37]} 24. Be4 {[%emt 0:01:17]} Qe5 {[%emt 0:02:18]} 25. Qh6+ {[%emt 0:01:38]} Ke7 {[%emt 0:01:33]} 26. Bxd3 {[%emt 0:01:33]} cxd3 {[%emt 0:01:01]} 27. Qh7 {[%emt 0:01:25]} Qf5 {[%emt 0:05:16]} 28. Qh8 {[%emt 0:00:18]} Qe5 {[%emt 0:00:04]} 29. Qc8 {[%emt 0:00:54]} Qc5 {[%emt 0:01:18]} 30. Qb7+ {[%emt 0:00:13]} Rd7 {[%emt 0:00:55]} 31. Qe4 {[%emt 0:00:36]} Qd4 {[%emt 0:00:58]} 32. Qh7 {[%emt 0:00:31]} a3 {[%emt 0:00:14]} 33. bxa3 {[%emt 0:00:26]} Rxa3 {[%emt 0:00:07]} 34. h4 {[%emt 0:00:13]} Rd5 {[%emt 0:01:46]} 35. Kh2 {[%emt 0:02:22]} Rf5 {[%emt 0:01:11]} 36. Qg8 {[%emt 0:00:34]} Rc3 {[%emt 0:01:16]} 37. Qb8 {[%emt 0:00:23]} Qb6 {[%emt 0:00:28]} 38. Qa8 {[%emt 0:01:14]} Rc2 {[%emt 0:00:17]} 39. Rxc2 {[%emt 0:00:35]} dxc2 {[%emt 0:00:05]} 40. Qe4 {[%emt 0:00:00]} 0-1